Cogmind - Beta 12 @@@ ROGUE MODE // 2023.11.24 @ 16:27:47 Player: Mozco Result: Destroyed by D-53 Grenadier with Mini Grenade Launcher Performance ------------- Evolutions (0) 0 Regions Visited (2) 400 Robots Destroyed (23) 115 Value Destroyed (401) 401 Prototype IDs (4) 80 Alien Tech Used (0) 0 Bonus (0) 0 TOTAL SCORE: 996 Bonus ------- None Cogmind --------- Core Integrity 0/250 Matter 300/300 Energy 100/100 System Corruption 0% Temperature Cool (0) Movement Core (350) Ox6 Location -10/Mines Parts ------- > --- POWER (1) -------- (None) > --- PROPULSION (2) --- (None) > --- UTILITY (2) ------ Large Storage Unit > --- WEAPON (2) ------- (None) > --- INVENTORY (15) --- Light Treads Small Storage Unit Experimental Sensor Array Terrain Scanner Targeting Computer Power Shielding Heavy EM Pulse Gun Heavy EM Pulse Gun Autogun Autogun Autogun Autogun Grenade Launcher Datajack Mining Laser Peak State ------------ > --- POWER ------------ Ion Engine > --- PROPULSION ------- Light Treads Light Treads > --- UTILITY ---------- Large Storage Unit Experimental Sensor Array > --- WEAPON ----------- Improved Medium Laser Shotgun > --- INVENTORY -------- Light Treads Small Storage Unit Terrain Scanner Improved Terrain Scanner Targeting Computer Power Shielding Heavy EM Pulse Gun Heavy EM Pulse Gun Autogun Autogun Autogun Autogun Grenade Launcher Datajack Mining Laser [Rating: 20] Favorites ----------- Power Ion Engine Engine Ion Engine Propulsion Light Treads Treads Light Treads Leg Aluminum Leg Wheel Compact Wheel Utility Large Storage Unit Device Terrain Scanner Storage Large Storage Unit Weapon Small Laser Energy Gun Small Laser Ballistic Gun Assault Rifle Special Melee Weapon Datajack Build | -11 -10 -10 ------- Run | Jun Mat Min Slots Evolved . | . . . Power . | . . . Propulsion . | . . . Utility . | . . . Weapon . | . . . Parts Attached 22 | 6 13 3 Power 3 | 1 2 . Engine 3 | 1 2 . Core . | . . . Reactor . | . . . Propulsion 6 | 2 4 . Treads 2 | . 2 . Leg 2 | . 2 . Wheel 2 | 2 . . Hover . | . . . Flight . | . . . Utility 6 | 1 2 3 Device 4 | . 1 3 Storage 2 | 1 1 . Processor . | . . . Hackware . | . . . Protection . | . . . Artifact . | . . . Weapon 7 | 2 5 . Energy Gun 4 | 2 2 . Energy Cannon . | . . . Ballistic Gun 2 | . 2 . Ballistic Cannon . | . . . Launcher . | . . . Special Weapon . | . . . Impact Weapon . | . . . Slashing Weapon . | . . . Piercing Weapon . | . . . Special Melee Weapon 1 | . 1 . Unidentified Prototypes 2 | . 1 1 Parts Lost 9 | . 3 6 Power 1 | . . 1 Propulsion 4 | . 2 2 Utility 1 | . . 1 Weapon 3 | . 1 2 Highest Loss Streak 6 | . 3 6 To Critical Strikes . | . . . Average Slot Usage (%) 98 | . 98 98 Engine 13 | . 14 13 Treads 13 | . 8 27 Leg 8 | . 11 . Wheel 5 | . 8 . Device 12 | . 11 13 Storage 15 | . 15 14 Energy Gun 16 | . 17 13 Ballistic Gun 11 | . 9 14 Naked Turns . | . . . Heaviest Build 32 | 10 32 32 Greatest Support 40 | 26 40 40 Greatest Overweight (x) 1 | . 1 1 Average Overweight (x) . | . . . Largest Inventory Capacity 15 | 8 15 15 Average Capacity 14 | 6 14 15 Most Carried 15 | 6 15 15 Average Carried 11 | 4 10 14 Final Capacity 15 | 8 15 15 Final Carried 15 | 6 13 15 Class Distribution -------------------- 100% | Mutant Dominant Class ---------------- Mutant | -10/Materials Mutant | -10/Mines Resources | -11 -10 -10 ----------- Run | Jun Mat Min Matter Collected 564 | 218 146 200 Remotely . | . . . Salvage Created 745 | . 342 403 Parts 35 | . 16 19 Haulers Intercepted 1 | . 1 . Recyclers Shooed . | . . . Parts Field Recycled . | . . . Retrieved Matter . | . . . Parts Self-Destructed . | . . . Prevented . | . . . Kills | -11 -10 -10 ------- Run | Jun Mat Min Combat Hostiles Destroyed 15 | . 7 8 Guns 15 | . 7 8 Classes Destroyed 7 | . 5 2 Worker 1 | . 1 . Tunneler 2 | . . 2 Hauler 1 | . 1 . Recycler 1 | . . 1 Watcher 3 | . 3 . Swarmer 9 | . 3 6 Grunt 6 | . 4 2 Best Kill Streak 5 | . 5 5 Combat Bots Only 5 | . 5 5 Max Kills in Single Turn 2 | . 1 2 Gunslinging . | . . . Exploded . | . . . Melee . | . . . Uniques/NPCs Destroyed . | . . . Combat | -11 -10 -10 -------- Run | Jun Mat Min Damage Taken 1199 | . 419 780 Core 259 | . 92 167 Absorbed by Shields . | . . . Core Remaining (%) 100 | 100 . . Volleys Fired 61 | . 31 30 Largest 2 | . 2 2 Hottest 80 | . 80 79 Shots Fired 121 | . 61 60 Gun 121 | . 61 60 Cannon . | . . . Launcher . | . . . Special . | . . . Kinetic 38 | . 8 30 Thermal 83 | . 53 30 Explosive . | . . . Electromagnetic . | . . . Robot Hit Streak 9 | . 6 9 Robot Miss Streak 6 | . 3 6 Penetration Max . | . . . Secondary Targets 1 | . . 1 Max Gunslinging Chain 1 | . . 1 Shots Hit Robots 74 | . 39 35 Core Hits 36 | . 19 17 Critical Kills 1 | . . 1 Critical Parts Destroyed . | . . . Critical Strikes 2 | . . 2 Burn 1 | . . 1 Destroy 1 | . . 1 Melee Attacks 2 | . 2 . Impact . | . . . Slashing . | . . . Piercing . | . . . Sneak Attacks 2 | . 2 . Combat Hostiles . | . . . Follow-up Attacks . | . . . Damage Inflicted 1045 | . 463 582 Guns 1045 | . 463 582 Cannons . | . . . Explosions . | . . . Melee . | . . . Ramming . | . . . Kinetic 388 | . 93 295 Thermal 657 | . 370 287 Explosive . | . . . Electromagnetic . | . . . Impact . | . . . Slashing . | . . . Piercing . | . . . Highest Corruption . | . . . Average Corruption . | . . . Corruption Purged . | . . . Corruption Blocked . | . . . Overload Shots . | . . . Overflow Damage . | . . . Projectiles . | . . . Explosions . | . . . Melee . | . . . Knockbacks . | . . . Impact . | . . . Kinetic . | . . . Secondary . | . . . Self-Inflicted Damage . | . . . Shots . | . . . Rammed . | . . . Targets Rammed . | . . . Kicked . | . . . Crushed . | . . . Highest Temperature 310 | . 225 310 Average Temperature 102 | . 95 108 Received Heat Transfer 222 | . 171 51 Siege Activations . | . . . Robots Corrupted . | . . . Combat Hostiles . | . . . Parts Fried . | . . . Impact Corruptions . | . . . Robots Melted . | . . . Combat Hostiles . | . . . Parts Melted 5 | . 2 3 Heat Transferred 1528 | . 825 703 Parts Sabotaged . | . . . Parts Stolen . | . . . Parts Stripped . | . . . Power Chain Reactions . | . . . Missiles Intercepted . | . . . Alert | -11 -10 -10 ------- Run | Jun Mat Min Peak Influence 238 | . 173 238 Initial 3 | . . 3 Average 59 | . 37 119 Maximum Alert Level 1 | . . 1 Low Security (%) 92 | 100 100 75 Level 1 7 | . . 24 Level 2 . | . . . Level 3 . | . . . Level 4 . | . . . Level 5 . | . . . High Security . | . . . Max Security . | . . . Squads Dispatched 1 | . 1 . Investigation 1 | . 1 . Extermination . | . . . Reinforcement . | . . . Assault . | . . . Garrison . | . . . Intercept . | . . . Searches Triggered . | . . . Construction Impeded . | . . . Haulers Reinforced . | . . . Active Scanning Responses . | . . . Cargo Convoy Interrupts . | . . . Stealth | -11 -10 -10 --------- Run | Jun Mat Min Distress Signals . | . . . Communications Jammed . | . . . Distress Signals . | . . . Times Spotted 22 | . 10 12 Peak Tracking Total 11 | . 3 11 Tactical Retreats . | . . . Traps | -11 -10 -10 ------- Run | Jun Mat Min Traps Triggered 1 | . 1 . Indirectly . | . . . Trap Hack Attempts . | . . . Triggered . | . . . Disarmed 4 | . 4 . Reprogrammed . | . . . Reused . | . . . Traps Extracted . | . . . Installed . | . . . Triggered . | . . . Machines | -11 -10 -10 ---------- Run | Jun Mat Min Machines Disabled 1 | . . 1 Max in Single Turn 1 | . . 1 Machines Repaired . | . . . Machines Sabotaged . | . . . Overloaded Fab Kills . | . . . Hacking | -11 -10 -10 --------- Run | Jun Mat Min Machines Accessed 8 | . 8 . Terminals 8 | . 8 . Fabricators . | . . . Repair Stations . | . . . Recycling Units . | . . . Scanalyzers . | . . . Garrison Access . | . . . Total Hacks 20 | . 20 . Successful 11 | . 11 . Failed 8 | . 8 . Catastrophic 1 | . 1 . Database Lockouts 1 | . 1 . Manual 10 | . 10 . Terminals 20 | . 20 . Fabricators . | . . . Repair Stations . | . . . Recycling Units . | . . . Scanalyzers . | . . . Garrison Access . | . . . Terminal Hacks 11 | . 11 . Robot Analysis 2 | . 2 . Prototype ID Bank 2 | . 2 . Terminal Index 1 | . 1 . Disarm Traps 1 | . 1 . Dispatch Records 1 | . 1 . Hauler Manifests 1 | . 1 . Zone Layout 3 | . 3 . Fabricator Hacks . | . . . Repair Station Hacks . | . . . Recycling Unit Hacks . | . . . Scanalyzer . | . . . Garrison Access Hacks . | . . . Unauthorized Hacks . | . . . Terminals . | . . . Fabricators . | . . . Repair Stations . | . . . Recycling Units . | . . . Scanalyzers . | . . . Garrison Access . | . . . Data Cores Recovered . | . . . Used . | . . . Hacking Detections 6 | . 6 . Full Trace Events 1 | . 1 . Feedback Events . | . . . Feedback Blocked . | . . . Robot Schematics Acquired . | . . . Robots Built . | . . . Authchips . | . . . Time . | . . . Total Robot Build Rating . | . . . Part Schematics Acquired . | . . . Parts Built . | . . . Authchips . | . . . Time . | . . . Total Part Build Rating . | . . . Parts Repaired . | . . . Time . | . . . Parts Recycled . | . . . Recycled Matter . | . . . Retrieved Matter . | . . . Retrieved Components . | . . . Parts Scanalyzed . | . . . Part Schematics Acquired . | . . . Parts Damaged . | . . . Bothacking | -11 -10 -10 ------------ Run | Jun Mat Min Used RIF Installer . | . . . Robots Hacked 2 | . 2 . Non-combat 2 | . 2 . Combat . | . . . Robot Hacks Applied 2 | . 2 . parse_system 1 | . 1 . no_distress 1 | . 1 . Relay Couplers Released . | . . . Fabnet Peak Effective % . | . . . Robots Rewired . | . . . Allies Hacked . | . . . Hacks Repelled . | . . . Allies | -11 -10 -10 -------- Run | Jun Mat Min Total Allies . | . . . Largest Group . | . . . Highest-Rated Group . | . . . Highest-Rated Ally . | . . . Total Orders . | . . . Ally Attacks . | . . . Total Damage . | . . . Kills . | . . . Allies Corrupted . | . . . Allies Melted . | . . . Intel | -11 -10 -10 ------- Run | Jun Mat Min Robot Analysis Total 2 | . 2 . Derelict Logs Recovered 1 | . . 1 Drone Launches . | . . . Drone Recoveries . | . . . Exploration | -11 -10 -10 ------------- Run | Jun Mat Min Turns Passed 1702 | 61 1149 492 Spaces Moved 975 | 53 680 242 Core 2 | 2 . . Treads 436 | . 194 242 Legs 232 | . 232 . Wheels 305 | 51 254 . Hover . | . . . Flight . | . . . Fastest Speed 50 | 50 90 160 Average Speed 147 | 88 148 160 Slowest Speed 240 | 90 190 240 Overloaded Moves . | . . . Propulsion Burnouts . | . . . Robots Hopped . | . . . Cave-ins Triggered . | . . . Exploration Rate (%) 54 | 5 96 63 Regions Visited 2 Branch Regions 1 Pre-discovered Areas . | . . . Known Exits Taken . | . . . Unknown Exits Taken 2 | 1 1 . Scrap Searched 1 | . . 1 Spaces Dug . | . . . Terrain Destroyed . | . . . Melee . | . . . Projectile . | . . . AOE . | . . . Terrain Rammed . | . . . Walls Destroyed . | . . . Machines Disabled . | . . . Actions | -11 -10 -10 --------- Run | Jun Mat Min Total 1108 | 64 760 284 Wait 20 | . 12 8 Move 973 | 52 679 242 Hop . | . . . Pick Up 21 | 6 14 1 Fast Attach 10 | 6 4 . Attach 3 | . 3 . Detach 1 | . 1 . Swap 9 | . 6 3 Drop 8 | . 8 . Fire 61 | . 31 30 Melee 2 | . 2 . Ram . | . . . Kick . | . . . Crush . | . . . Escape Stasis . | . . . Rewire . | . . . Trap . | . . . Miscellaneous . | . . . Route ------- -11/Junkyard -10/Materials (discovered 5 exits: [*Mat x3] / [*Min x2]) -10/Mines (discovered 2 exits: [*Mat x2]) History --------- Turn | Location | Event 10 | -11/Junkyard | Discovered new exit (range 15) 62 | -11/Junkyard | Entered Materials 99 | -10/Materials | Discovered new exit (range 8) 114 | -10/Materials | Discovered new exit (range 15) 192 | -10/Materials | Central database locked down 255 | -10/Materials | Discovered new exit (range 8) 304 | -10/Materials | Build established: Mutant 441 | -10/Materials | Lost 3 parts (2n1w) 483 | -10/Materials | Discovered new exit (range 14) 681 | -10/Materials | Discovered new exit (range 7) 1211 | -10/Materials | Entered Mines 1266 | -10/Mines | Discovered new exit (range 6) 1273 | -10/Mines | Learned Materials terminal intel 1313 | -10/Mines | Found a damaged Exp. Sensor Array with a note attached 1316 | -10/Mines | Found Prototype Device 1336 | -10/Mines | Identified Exp. Sensor Array 1388 | -10/Mines | Discovered new exit (range 7) 1499 | -10/Mines | Core integrity fell below 50% 1665 | -10/Mines | Assembled infested the area 1703 | -10/Mines | Core integrity fell below 20% 1703 | -10/Mines | Destroyed by D-53 Grenadier with Mini Grenade Launcher Last Messages --------------- 01576_ A-02 Transporter destroyed. 01587_ Acquired 8 matter. 01625_ T-07 Excavator is excavating. 01629_ Searching scrap... 01629_ Found Hcp. Battery. 01629_ Found Sml. Storage Unit. 01629_ Found Welding Torch. 01629_ Found 13 Matter. 01629_ T-07 Excavator is excavating. 01665_ ALERT: Infestation in the mines, dispatching Demolisher response squad. 01693_ C-30 ARC bursts open, deploying its payload. 01693_ D-53 Grenadier unfolds itself. 01695_ Ion Engine destroyed. 01697_ Imp. Terrain Scanner destroyed. 01699_ Imp. Medium Laser destroyed. 01699_ K-01 Serf destroyed. 01699_ Lgt. Treads destroyed. 01702_ The unstable cave ceiling collapses. 01702_ Shotgun destroyed. Map ----- +----------------------------------------------------+ | | | | | | | ???????????????????????????#???????????#?????????? | | ?????????????#??????????????????#????????????????? | | ??????????????????????????????#??????????????????? | | ?????????????????????????????????#??????????##???? | | ?????????????#????#????#??#???????#???????????#??? | | ??????#????#????????#???#?############???#??#????? | | ????????#???##????????##??# ##??##??????? | | ######????#?????#?????????# #???#?????#?? | | ?# #????????????####????# #????#??????? | | ??#! ##?????????### ##???# #???????????? | | ??# %#?????????## !##??# """ """ ##?#????????? | | ??#!|#??#??????# % ##?# """ """ ##??????????# | | ??# ######????# ### """ """ #??#????????# | | ??# #????# [ * ## [[*#???????????? | | ??###### ####### *% ##########%#####????#???? | | ???????# ### ##?#???## = #????#????? | | ???????# ### ! = #????#?# ## #?????????# | | #??????###### ### % #??#???#!## #?#??###### | | #??????#????# ###????# ## #???## # | | ????????????# #### ##???#=## #??## # | | ????????????# #??# ######%## #??# # | | ????????????# ##### r=## #?## """ ## | | #???????????# # ### @ # ### ## ### """ ## | | ??????#????## # ## ### ## """ # | | ??????#???## # # ### ###### """ # | | ??????#??## a ## #?# #?#??## # | | ????#???## ## # #?# #?#?#?#### < # | | ???????## ### # ### ##??????## ## | | ???##### a ## d% #???#????# ##? | | d ####????????# #?# | | ## #??#?????##?# #?? | | ### ## #### ##############=#?? | | ????#??# ##??### #######??# |= =*%=!#?? | | ???????# ####?#???# #?#??##??# ############# | | ????#? ##????????? ##??#???## #????#?### | | ?????#### ##?????????? #?????#??# #?????## | | ????????######????#??????a#????????# ####### | | ???????????#????????????? #????????# | | ?????#?????????????????#?##????#???##### #### | | ?? ???????????????????????????????#????# #?## #### | | ??????#???????????????#???????????????## #??# #??# | | ???????????????????????????????????????# ??# ??? | | ?????????????????????????????#????#???? ??###??# | | ??????????? ??????????????????????????? ??#????? | | ??????????????????????????????????????? ????#?## | | ??????????????????????????????????????? ??##??? | | ??????????????????????????????????????? #???# ??? | +----------------------------------------------------+ Best States ------------- Heat Dissipation 25 Energy Generation 10 Energy Capacity 250 Matter Stores 300 Matter Capacity 300 Sight Range 16 Terrain Scan Range 16 Terrain Scan Density 10 Evasion (%) 42 Recoil Reduction 2 Item Schematics ----------------- None Robot Schematics ------------------ None Fabricated ------------ Nothing Alien Tech Used ----------------- None Achievements -------------- None Challenges ------------ None Game ------ Seed InsulatedThrowingScanner Manual? 0 Play Time 00:15:33 Cumulative 55.4 hours Start 2023.11.24 @ 16:14:23 End 2023.11.24 @ 16:27:47 Sessions 1 Manual Loads 0 Difficulty Rogue Special Mode None Game No. 54 Rogue 51 Adventurer 3 Explorer 0 Win Type - Total 0 Types 0/0/0/0/0/0/0/0/0 Lore% 52 Gallery% 50 Achievement% 43 Wizard Run 0 Options --------- ASCII 0 Keyboard 0 Movement Mouse Keybinds 0 Fullscreen 2 Font 18/SmallcapsGlow Map View 76x50 Tactical HUD 1 Map Filters NONE Filters NONE Steam 1 RUN: adec6cef-5c9e-4322-99f5-79dce45a92a5